[Event "*** SCC Grand Prix: Titled Tuesday Blitz"]
[Site "Chess.com"]
[Date "2020.07.14"]
[Round "5"]
[White "Onischuk_V"]
[Black "Ranindu2003"]
[Result "1-0"]
[WhiteElo "2892"]
[BlackElo "2608"]
[TimeControl "180+1"]
[EndTime "10:57:28 PDT"]
[Termination "Onischuk_V won by resignation"]

1. e4 {[%clk 0:02:57.4]} 1... c5 {[%clk 0:02:59.4]} 2. Nc3 {[%clk 0:02:49.8]}
2... a6 {[%clk 0:02:58.9]} 3. Nge2 {[%clk 0:02:45.9]} 3... d6 {[%clk 0:02:56]}
4. g3 {[%clk 0:02:45.3]} 4... Nc6 {[%clk 0:02:51.1]} 5. Bg2 {[%clk 0:02:45.7]}
5... g6 {[%clk 0:02:51.4]} 6. d4 {[%clk 0:02:45.2]} 6... cxd4 {[%clk 0:02:48.9]}
7. Nxd4 {[%clk 0:02:45.3]} 7... Bg7 {[%clk 0:02:49.5]} 8. Nb3 {[%clk 0:02:41.1]}
8... Nf6 {[%clk 0:02:48.3]} 9. h3 {[%clk 0:02:40.9]} 9... O-O {[%clk 0:02:45.2]}
10. O-O {[%clk 0:02:41]} 10... Bd7 {[%clk 0:02:39.5]} 11. Re1 {[%clk 0:02:37.6]}
11... Rc8 {[%clk 0:02:38.2]} 12. Nd5 {[%clk 0:02:36.8]} 12... Nxd5 {[%clk
0:02:31.4]} 13. exd5 {[%clk 0:02:36.5]} 13... Ne5 {[%clk 0:02:31.7]} 14. c3
{[%clk 0:02:36.6]} 14... b5 {[%clk 0:02:23.8]} 15. Nd4 {[%clk 0:02:34.5]} 15...
Nc4 {[%clk 0:02:21.2]} 16. Qe2 {[%clk 0:02:31.5]} 16... Re8 {[%clk 0:02:20.4]}
17. Bg5 {[%clk 0:02:30.2]} 17... Qc7 {[%clk 0:02:06.9]} 18. Rac1 {[%clk
0:02:25.2]} 18... h6 {[%clk 0:01:43.7]} 19. Bf4 {[%clk 0:02:25.3]} 19... e5
{[%clk 0:01:25.7]} 20. dxe6 {[%clk 0:02:21.9]} 20... Bxe6 {[%clk 0:01:23.3]} 21.
Nxe6 {[%clk 0:02:17.2]} 21... Rxe6 {[%clk 0:01:24.2]} 22. Qc2 {[%clk 0:02:17.1]}
22... g5 {[%clk 0:01:15.3]} 23. Rxe6 {[%clk 0:02:11.3]} 23... fxe6 {[%clk
0:01:16.2]} 24. Bd2 {[%clk 0:02:11.8]} 24... Nxd2 {[%clk 0:01:15.6]} 25. Qxd2
{[%clk 0:02:11.6]} 25... b4 {[%clk 0:01:08.4]} 26. c4 {[%clk 0:02:01.5]} 26...
Qc5 {[%clk 0:01:08]} 27. b3 {[%clk 0:01:59]} 27... Rf8 {[%clk 0:01:04.8]} 28.
Qe2 {[%clk 0:01:56.6]} 28... Qe5 {[%clk 0:01:02.3]} 29. Rc2 {[%clk 0:01:45]}
29... Qxe2 {[%clk 0:00:58.1]} 30. Rxe2 {[%clk 0:01:44.3]} 30... Be5 {[%clk
0:00:58.6]} 31. Be4 {[%clk 0:01:31]} 31... Kg7 {[%clk 0:00:58.1]} 32. Kg2 {[%clk
0:01:30.9]} 32... Rf7 {[%clk 0:00:57.9]} 33. Bf3 {[%clk 0:01:29.6]} 33... a5
{[%clk 0:00:58]} 34. Bg4 {[%clk 0:01:29.5]} 34... Re7 {[%clk 0:00:49.4]} 35. Kf3
{[%clk 0:01:26.2]} 35... Kf6 {[%clk 0:00:48.7]} 36. Ke4 {[%clk 0:01:25.2]} 36...
Ra7 {[%clk 0:00:45.9]} 37. f4 {[%clk 0:01:21.7]} 37... gxf4 {[%clk 0:00:46.8]}
38. gxf4 {[%clk 0:01:21.6]} 38... Bc3 {[%clk 0:00:47.5]} 39. Kd3 {[%clk
0:01:20.5]} 39... e5 {[%clk 0:00:40.3]} 40. fxe5+ {[%clk 0:01:15.7]} 40... Bxe5
{[%clk 0:00:40.7]} 41. Ke4 {[%clk 0:01:13.6]} 41... a4 {[%clk 0:00:40.4]} 42.
Rf2+ {[%clk 0:01:11.1]} 42... Ke7 {[%clk 0:00:40]} 43. Bh5 {[%clk 0:01:07.2]}
43... Ke6 {[%clk 0:00:39.3]} 44. Bg4+ {[%clk 0:00:58.3]} 44... Ke7 {[%clk
0:00:38.3]} 45. Bh5 {[%clk 0:00:47.8]} 45... Ke6 {[%clk 0:00:37.9]} 46. Be8
{[%clk 0:00:46.6]} 46... axb3 {[%clk 0:00:34.6]} 47. axb3 {[%clk 0:00:46.1]}
47... Ra3 {[%clk 0:00:34.2]} 48. Bf7+ {[%clk 0:00:41.2]} 48... Ke7 {[%clk
0:00:33.8]} 49. c5 {[%clk 0:00:40.6]} 49... Ra5 {[%clk 0:00:23.7]} 50. c6 {[%clk
0:00:39.9]} 50... Rc5 {[%clk 0:00:23.9]} 51. Bd5 {[%clk 0:00:39.8]} 51... Rc1
{[%clk 0:00:20.4]} 52. Rf7+ {[%clk 0:00:39.7]} 52... Kd8 {[%clk 0:00:19.3]} 53.
Rb7 {[%clk 0:00:39.3]} 53... Rf1 {[%clk 0:00:16]} 54. Be6 {[%clk 0:00:30.9]}
54... Rc1 {[%clk 0:00:10.8]} 55. Rd7+ {[%clk 0:00:30.3]} 55... Ke8 {[%clk
0:00:10.6]} 56. c7 {[%clk 0:00:28.4]} 56... Bh2 {[%clk 0:00:05.9]} 57. Kf5
{[%clk 0:00:18.9]} 57... d5 {[%clk 0:00:05.6]} 58. Rd8+ {[%clk 0:00:18.7]} 58...
Ke7 {[%clk 0:00:05.5]} 59. c8=Q {[%clk 0:00:18.6]} 59... Rf1+ {[%clk 0:00:05.2]}
60. Kg6 {[%clk 0:00:17.3]} 60... Rf6+ {[%clk 0:00:05.2]} 61. Kh7 {[%clk
0:00:17.5]} 1-0

[Event "*** SCC Grand Prix: Titled Tuesday Blitz"]
[Site "Chess.com"]
[Date "2020.07.14"]
[Round "5"]
[White "hongnhung1234"]
[Black "atalz0"]
[Result "1-0"]
[WhiteElo "2254"]
[BlackElo "2379"]
[TimeControl "180+1"]
[EndTime "10:57:30 PDT"]
[Termination "hongnhung1234 won by resignation"]

1. e4 {[%clk 0:03:00.9]} 1... c6 {[%clk 0:02:57]} 2. d4 {[%clk 0:03:00.2]} 2...
d5 {[%clk 0:02:57.1]} 3. f3 {[%clk 0:03:00.7]} 3... e6 {[%clk 0:02:45.9]} 4. Nc3
{[%clk 0:02:59.6]} 4... Bb4 {[%clk 0:02:42.5]} 5. Bf4 {[%clk 0:02:57.7]} 5...
dxe4 {[%clk 0:02:37.4]} 6. fxe4 {[%clk 0:02:58.6]} 6... Nf6 {[%clk 0:02:37.4]}
7. Qd3 {[%clk 0:02:57.4]} 7... Qa5 {[%clk 0:02:35.6]} 8. Ne2 {[%clk 0:02:57.1]}
8... Nbd7 {[%clk 0:02:29.1]} 9. O-O-O {[%clk 0:02:56.3]} 9... O-O {[%clk
0:02:24.1]} 10. h3 {[%clk 0:02:43.7]} 10... e5 {[%clk 0:02:22.5]} 11. Bd2 {[%clk
0:02:21.3]} 11... exd4 {[%clk 0:02:09.8]} 12. Nxd4 {[%clk 0:02:22.2]} 12... Nc5
{[%clk 0:02:04.3]} 13. Qg3 {[%clk 0:02:15.3]} 13... Bxc3 {[%clk 0:02:03.2]} 14.
Bxc3 {[%clk 0:02:13.2]} 14... Qxa2 {[%clk 0:02:02.1]} 15. Nb3 {[%clk 0:02:08.1]}
15... Ncxe4 {[%clk 0:01:47.3]} 16. Qf3 {[%clk 0:01:59.8]} 16... Nxc3 {[%clk
0:01:43.8]} 17. Qxc3 {[%clk 0:02:00.7]} 17... Be6 {[%clk 0:01:37.3]} 18. Bc4
{[%clk 0:01:54.1]} 18... Nd5 {[%clk 0:01:23.3]} 19. Qd4 {[%clk 0:01:38.9]} 19...
b5 {[%clk 0:01:21.7]} 20. Bxd5 {[%clk 0:01:32.3]} 20... Bxd5 {[%clk 0:01:22.6]}
21. Nc5 {[%clk 0:01:29.2]} 21... Rad8 {[%clk 0:01:14.7]} 22. Nd3 {[%clk
0:01:03]} 22... Bc4 {[%clk 0:00:39.1]} 23. Qc3 {[%clk 0:00:53.3]} 23... Bxd3
{[%clk 0:00:20.4]} 24. cxd3 {[%clk 0:00:54.2]} 24... Qd5 {[%clk 0:00:13.2]} 25.
Kb1 {[%clk 0:00:49.6]} 25... c5 {[%clk 0:00:12.8]} 26. Rc1 {[%clk 0:00:47.8]}
26... Qxd3+ {[%clk 0:00:10.2]} 27. Qxd3 {[%clk 0:00:48.7]} 27... Rxd3 {[%clk
0:00:10.3]} 28. Rxc5 {[%clk 0:00:49.3]} 28... a6 {[%clk 0:00:10.1]} 29. Rhc1
{[%clk 0:00:47.9]} 29... h6 {[%clk 0:00:09.4]} 30. Rc6 {[%clk 0:00:47.8]} 30...
Rd2 {[%clk 0:00:08.6]} 31. R1c2 {[%clk 0:00:47.7]} 31... Rfd8 {[%clk 0:00:07]}
32. Rxa6 {[%clk 0:00:46.3]} 32... Rxc2 {[%clk 0:00:05]} 33. Kxc2 {[%clk
0:00:47.2]} 33... Rd5 {[%clk 0:00:05.3]} 34. Rb6 {[%clk 0:00:46.5]} 34... Rg5
{[%clk 0:00:03.8]} 35. g4 {[%clk 0:00:45]} 35... h5 {[%clk 0:00:03.8]} 36. b4
{[%clk 0:00:39.4]} 36... hxg4 {[%clk 0:00:03.8]} 37. hxg4 {[%clk 0:00:40.3]}
37... g6 {[%clk 0:00:03.9]} 38. Kc3 {[%clk 0:00:39.3]} 38... Kg7 {[%clk
0:00:04.3]} 39. Kd3 {[%clk 0:00:36]} 39... Rxg4 {[%clk 0:00:04.8]} 40. Rxb5
{[%clk 0:00:35.7]} 40... f5 {[%clk 0:00:05.1]} 41. Rb6 {[%clk 0:00:33.9]} 41...
Rg1 {[%clk 0:00:04.3]} 42. b5 {[%clk 0:00:33.6]} 42... Rb1 {[%clk 0:00:04.9]}
43. Kc4 {[%clk 0:00:33.8]} 43... Kh6 {[%clk 0:00:04.1]} 44. Rb8 {[%clk
0:00:32.7]} 44... f4 {[%clk 0:00:04.5]} 45. Kd3 {[%clk 0:00:30.8]} 45... Kg5
{[%clk 0:00:05]} 46. b6 {[%clk 0:00:29]} 46... Kg4 {[%clk 0:00:05.2]} 47. b7
{[%clk 0:00:27.9]} 47... g5 {[%clk 0:00:05.6]} 48. Kc2 {[%clk 0:00:25.7]} 48...
Rb6 {[%clk 0:00:04.7]} 49. Kd2 {[%clk 0:00:23.8]} 49... f3 {[%clk 0:00:04.8]}
50. Ke3 {[%clk 0:00:22.2]} 50... Kg3 {[%clk 0:00:04.7]} 51. Rf8 {[%clk
0:00:21.1]} 51... Rxb7 {[%clk 0:00:04]} 52. Rxf3+ {[%clk 0:00:20.5]} 52... Kg2
{[%clk 0:00:04.3]} 53. Rf8 {[%clk 0:00:19.3]} 53... Re7+ {[%clk 0:00:04.1]} 54.
Kd2 {[%clk 0:00:17.5]} 54... g4 {[%clk 0:00:05]} 55. Kd3 {[%clk 0:00:16.6]}
55... g3 {[%clk 0:00:05.3]} 56. Rg8 {[%clk 0:00:16.8]} 56... Re5 {[%clk
0:00:04.4]} 57. Kd4 {[%clk 0:00:15.7]} 57... Rh5 {[%clk 0:00:04.1]} 58. Ke3
{[%clk 0:00:15.3]} 58... Re5+ {[%clk 0:00:02.5]} 59. Kf4 {[%clk 0:00:15.3]}
59... Re2 {[%clk 0:00:02.8]} 60. Rxg3+ {[%clk 0:00:15.5]} 60... Kf2 {[%clk
0:00:03.2]} 61. Rh3 {[%clk 0:00:14.8]} 61... Re8 {[%clk 0:00:03.4]} 62. Rh2+
{[%clk 0:00:14.6]} 62... Kg1 {[%clk 0:00:02.9]} 63. Ra2 {[%clk 0:00:15.5]} 63...
Rf8+ {[%clk 0:00:03.3]} 64. Kg3 {[%clk 0:00:14]} 64... Rf2 {[%clk 0:00:04.2]}
65. Rxf2 {[%clk 0:00:12.4]} 1-0

[Event "*** SCC Grand Prix: Titled Tuesday Blitz"]
[Site "Chess.com"]
[Date "2020.07.14"]
[Round "5"]
[White "marianokar"]
[Black "tsvet2005"]
[Result "1-0"]
[WhiteElo "2420"]
[BlackElo "2582"]
[TimeControl "180+1"]
[EndTime "10:57:39 PDT"]
[Termination "marianokar won by checkmate"]

1. e4 {[%clk 0:03:00.9]} 1... c5 {[%clk 0:02:58.7]} 2. Nf3 {[%clk 0:02:59.8]}
2... d6 {[%clk 0:02:58.4]} 3. Bb5+ {[%clk 0:02:59.5]} 3... Nd7 {[%clk
0:02:57.8]} 4. O-O {[%clk 0:02:58.6]} 4... a6 {[%clk 0:02:56.2]} 5. Bd3 {[%clk
0:02:58.7]} 5... Ngf6 {[%clk 0:02:55.5]} 6. Re1 {[%clk 0:02:59.2]} 6... g6
{[%clk 0:02:55.7]} 7. c3 {[%clk 0:02:59.1]} 7... Bh6 {[%clk 0:02:56.2]} 8. a4
{[%clk 0:02:40.5]} 8... O-O {[%clk 0:02:48.9]} 9. Bc2 {[%clk 0:02:38.2]} 9...
Ne5 {[%clk 0:02:48.5]} 10. Nxe5 {[%clk 0:02:23.2]} 10... dxe5 {[%clk 0:02:49.4]}
11. Na3 {[%clk 0:02:23.7]} 11... Qc7 {[%clk 0:02:37]} 12. Nc4 {[%clk 0:02:12.8]}
12... b6 {[%clk 0:02:37.2]} 13. a5 {[%clk 0:01:47.6]} 13... b5 {[%clk
0:02:33.9]} 14. Nb6 {[%clk 0:01:47.7]} 14... Rb8 {[%clk 0:02:34.2]} 15. d4
{[%clk 0:01:38]} 15... Bxc1 {[%clk 0:02:19.7]} 16. Rxc1 {[%clk 0:01:38.9]} 16...
c4 {[%clk 0:02:16]} 17. f4 {[%clk 0:01:14.2]} 17... exd4 {[%clk 0:02:02.9]} 18.
e5 {[%clk 0:00:47.4]} 18... d3 {[%clk 0:00:54]} 19. exf6 {[%clk 0:00:45.2]}
19... dxc2 {[%clk 0:00:49.5]} 20. Qd4 {[%clk 0:00:41.7]} 20... e6 {[%clk
0:00:34.5]} 21. Rxc2 {[%clk 0:00:32.8]} 21... Bb7 {[%clk 0:00:31]} 22. Qe5
{[%clk 0:00:27.4]} 22... Qxe5 {[%clk 0:00:23.4]} 23. Rxe5 {[%clk 0:00:27.1]}
23... Rfd8 {[%clk 0:00:23.9]} 24. Rc5 {[%clk 0:00:26.3]} 24... Be4 {[%clk
0:00:13.5]} 25. Re2 {[%clk 0:00:23.7]} 25... Rd1+ {[%clk 0:00:13.9]} 26. Kf2
{[%clk 0:00:23]} 26... Bd3 {[%clk 0:00:14.5]} 27. Ree5 {[%clk 0:00:14.9]} 27...
Rd2+ {[%clk 0:00:12.5]} 28. Kf3 {[%clk 0:00:13.6]} 28... Rxb2 {[%clk 0:00:10.6]}
29. Rc7 {[%clk 0:00:13.5]} 29... h5 {[%clk 0:00:07.2]} 30. Rec5 {[%clk
0:00:10.9]} 30... Rc2 {[%clk 0:00:06.4]} 31. Nd7 {[%clk 0:00:10.8]} 31... Rd8
{[%clk 0:00:04.7]} 32. Rc8 {[%clk 0:00:10.8]} 32... Rxc8 {[%clk 0:00:03]} 33.
Rxc8+ {[%clk 0:00:09.7]} 33... Kh7 {[%clk 0:00:03.9]} 34. Nf8+ {[%clk
0:00:10.4]} 34... Kh6 {[%clk 0:00:04.8]} 35. Nxe6 {[%clk 0:00:09.2]} 35... g5
{[%clk 0:00:05.1]} 36. fxg5+ {[%clk 0:00:07.3]} 36... Kg6 {[%clk 0:00:05.2]} 37.
h4 {[%clk 0:00:05]} 37... fxe6 {[%clk 0:00:04.7]} 38. Rg8+ {[%clk 0:00:05.5]}
38... Kf7 {[%clk 0:00:04.9]} 39. Rg7+ {[%clk 0:00:06.1]} 39... Kf8 {[%clk
0:00:05.1]} 40. g6 {[%clk 0:00:05.2]} 40... Rxc3 {[%clk 0:00:04.3]} 41. Rf7+
{[%clk 0:00:04.9]} 41... Kg8 {[%clk 0:00:04]} 42. Rg7+ {[%clk 0:00:05]} 42...
Kf8 {[%clk 0:00:03.6]} 43. Kf4 {[%clk 0:00:05.7]} 43... Rc2 {[%clk 0:00:03.1]}
44. Rf7+ {[%clk 0:00:04.4]} 44... Kg8 {[%clk 0:00:03.4]} 45. Rg7+ {[%clk
0:00:04.2]} 45... Kf8 {[%clk 0:00:03.8]} 46. Rf7+ {[%clk 0:00:04.5]} 46... Ke8
{[%clk 0:00:03.1]} 47. Re7+ {[%clk 0:00:03]} 47... Kf8 {[%clk 0:00:03.5]} 48.
g7+ {[%clk 0:00:03.4]} 48... Kg8 {[%clk 0:00:04.1]} 49. Re8+ {[%clk 0:00:03.8]}
49... Kf7 {[%clk 0:00:04.7]} 50. g8=Q+ {[%clk 0:00:03.8]} 50... Kxf6 {[%clk
0:00:05.6]} 51. Qf8+ {[%clk 0:00:04.1]} 51... Kg6 {[%clk 0:00:05.2]} 52. Rxe6+
{[%clk 0:00:05]} 52... Kh7 {[%clk 0:00:05.5]} 53. Qf7+ {[%clk 0:00:05.6]} 53...
Kh8 {[%clk 0:00:05.7]} 54. Re8# {[%clk 0:00:06.5]} 1-0

[Event "*** SCC Grand Prix: Titled Tuesday Blitz"]
[Site "Chess.com"]
[Date "2020.07.14"]
[Round "5"]
[White "YPradafah"]
[Black "VMikhalevski"]
[Result "0-1"]
[WhiteElo "2562"]
[BlackElo "2797"]
[TimeControl "180+1"]
[EndTime "10:57:42 PDT"]
[Termination "VMikhalevski won by resignation"]

1. d4 {[%clk 0:02:53.9]} 1... Nf6 {[%clk 0:02:58.4]} 2. Nf3 {[%clk 0:02:51.8]}
2... g6 {[%clk 0:02:57.7]} 3. Bf4 {[%clk 0:02:52.1]} 3... Bg7 {[%clk 0:02:57.1]}
4. e3 {[%clk 0:02:52.7]} 4... O-O {[%clk 0:02:56.9]} 5. h3 {[%clk 0:02:53.3]}
5... c5 {[%clk 0:02:56.7]} 6. c3 {[%clk 0:02:51.4]} 6... b6 {[%clk 0:02:54.4]}
7. Nbd2 {[%clk 0:02:51.3]} 7... Bb7 {[%clk 0:02:53.8]} 8. Be2 {[%clk 0:02:51.2]}
8... d6 {[%clk 0:02:49.8]} 9. O-O {[%clk 0:02:51.3]} 9... Nc6 {[%clk 0:02:49.4]}
10. Bh2 {[%clk 0:02:50.9]} 10... a6 {[%clk 0:02:48.2]} 11. a4 {[%clk 0:02:50.5]}
11... Rc8 {[%clk 0:02:44.4]} 12. Nc4 {[%clk 0:02:30.3]} 12... Qc7 {[%clk
0:02:38.8]} 13. Qb3 {[%clk 0:02:28.5]} 13... Nd7 {[%clk 0:02:37.4]} 14. Rfd1
{[%clk 0:02:24.4]} 14... Rb8 {[%clk 0:02:36.1]} 15. Qa3 {[%clk 0:02:22.3]} 15...
b5 {[%clk 0:02:27.6]} 16. axb5 {[%clk 0:01:55.6]} 16... axb5 {[%clk 0:02:27.2]}
17. Nxd6 {[%clk 0:01:43.7]} 17... exd6 {[%clk 0:02:20.5]} 18. dxc5 {[%clk
0:01:44]} 18... Ra8 {[%clk 0:02:19.4]} 19. Bxd6 {[%clk 0:01:38.8]} 19... Rxa3
{[%clk 0:02:12.6]} 20. Bxc7 {[%clk 0:01:38.8]} 20... Rxa1 {[%clk 0:02:12]} 21.
Rxa1 {[%clk 0:01:39.7]} 21... Nxc5 {[%clk 0:02:08.9]} 22. Bd6 {[%clk 0:01:38.6]}
22... Nb3 {[%clk 0:02:08.9]} 23. Ra3 {[%clk 0:01:36.8]} 23... Rd8 {[%clk
0:02:08.8]} 24. Rxb3 {[%clk 0:01:35.7]} 24... Rxd6 {[%clk 0:02:08.4]} 25. Bxb5
{[%clk 0:01:35.7]} 25... Bf8 {[%clk 0:02:00.3]} 26. Be2 {[%clk 0:01:16.2]} 26...
Na5 {[%clk 0:01:51.6]} 27. Ra3 {[%clk 0:01:06.7]} 27... Rd5 {[%clk 0:01:45.8]}
28. Ra1 {[%clk 0:01:00.1]} 28... Nc6 {[%clk 0:01:45]} 29. Nd4 {[%clk 0:00:57.6]}
29... Rd7 {[%clk 0:01:36.9]} 30. Bb5 {[%clk 0:00:53.3]} 30... Rc7 {[%clk
0:01:36.6]} 31. Bxc6 {[%clk 0:00:50.3]} 31... Bxc6 {[%clk 0:01:36.7]} 32. Nxc6
{[%clk 0:00:51]} 32... Rxc6 {[%clk 0:01:37]} 33. Kf1 {[%clk 0:00:47.9]} 33... f5
{[%clk 0:01:34.9]} 34. Ke2 {[%clk 0:00:47.2]} 34... Rb6 {[%clk 0:01:35.2]} 35.
Ra2 {[%clk 0:00:47.4]} 35... Kf7 {[%clk 0:01:34.2]} 36. b4 {[%clk 0:00:46.9]}
36... Ke6 {[%clk 0:01:32.8]} 37. Kd3 {[%clk 0:00:46.6]} 37... Bg7 {[%clk
0:01:29.2]} 38. Ra7 {[%clk 0:00:42]} 38... Bf6 {[%clk 0:01:28.3]} 39. Rxh7
{[%clk 0:00:38.8]} 39... Rd6+ {[%clk 0:01:28.1]} 40. Kc2 {[%clk 0:00:36.5]}
40... Rc6 {[%clk 0:01:28.2]} 41. Rb7 {[%clk 0:00:21.9]} 41... Rxc3+ {[%clk
0:01:27.2]} 42. Kd2 {[%clk 0:00:22.5]} 42... Rb3 {[%clk 0:01:27.3]} 43. Ke2
{[%clk 0:00:22.9]} 43... Bc3 {[%clk 0:01:22.2]} 44. b5 {[%clk 0:00:22.9]} 44...
Rb2+ {[%clk 0:01:22]} 45. Kd3 {[%clk 0:00:20.6]} 45... Be1 {[%clk 0:01:20.7]}
46. Rb6+ {[%clk 0:00:18.7]} 46... Kf7 {[%clk 0:01:19.9]} 47. g4 {[%clk
0:00:18.7]} 47... Bxf2 {[%clk 0:01:17.8]} 48. gxf5 {[%clk 0:00:19.2]} 48... gxf5
{[%clk 0:01:17.6]} 49. Rb7+ {[%clk 0:00:19.1]} 49... Ke6 {[%clk 0:01:14.4]} 50.
Rb6+ {[%clk 0:00:18.9]} 50... Ke5 {[%clk 0:01:14.5]} 51. Rb8 {[%clk 0:00:15.8]}
51... Rb3+ {[%clk 0:01:02.9]} 52. Ke2 {[%clk 0:00:14.7]} 52... Bxe3 {[%clk
0:01:01.1]} 53. h4 {[%clk 0:00:12.2]} 53... Ke4 {[%clk 0:00:58.9]} 54. Re8+
{[%clk 0:00:11.5]} 54... Kf4 {[%clk 0:00:59.5]} 55. Rb8 {[%clk 0:00:12.2]} 55...
Bd4 {[%clk 0:00:54]} 56. h5 {[%clk 0:00:11]} 56... Kg5 {[%clk 0:00:51.7]} 57.
Rd8 {[%clk 0:00:07.1]} 57... Bb6 {[%clk 0:00:39.4]} 58. Rd5 {[%clk 0:00:05.2]}
58... Bg1 {[%clk 0:00:33.5]} 59. Kf1 {[%clk 0:00:04.1]} 59... Be3 {[%clk
0:00:26.2]} 60. Ke2 {[%clk 0:00:04.5]} 60... Kf4 {[%clk 0:00:22.5]} 61. h6
{[%clk 0:00:03.9]} 61... Rb2+ {[%clk 0:00:22.4]} 62. Ke1 {[%clk 0:00:04.3]}
62... Rh2 {[%clk 0:00:21.4]} 63. b6 {[%clk 0:00:03.3]} 63... Bxb6 {[%clk
0:00:19.9]} 64. Rd6 {[%clk 0:00:01.9]} 64... Be3 {[%clk 0:00:19.8]} 65. Rg6
{[%clk 0:00:02.2]} 65... Kf3 {[%clk 0:00:19.8]} 66. Kd1 {[%clk 0:00:02.8]} 66...
Rxh6 {[%clk 0:00:16.8]} 67. Rg8 {[%clk 0:00:02.6]} 67... Rc6 {[%clk 0:00:16.1]}
68. Rg3+ {[%clk 0:00:01.5]} 68... Kxg3 {[%clk 0:00:14.2]} 0-1

[Event "*** SCC Grand Prix: Titled Tuesday Blitz"]
[Site "Chess.com"]
[Date "2020.07.14"]
[Round "5"]
[White "ShahMatKanal"]
[Black "S2PAc"]
[Result "0-1"]
[WhiteElo "2507"]
[BlackElo "2742"]
[TimeControl "180+1"]
[EndTime "10:57:42 PDT"]
[Termination "S2PAc won on time"]

1. d4 {[%clk 0:03:00.9]} 1... Nf6 {[%clk 0:02:57.8]} 2. c4 {[%clk 0:02:59.4]}
2... b6 {[%clk 0:02:58]} 3. Nc3 {[%clk 0:02:58.6]} 3... Bb7 {[%clk 0:02:58.1]}
4. Nf3 {[%clk 0:02:57.3]} 4... e6 {[%clk 0:02:56.6]} 5. a3 {[%clk 0:02:54.4]}
5... g6 {[%clk 0:02:51.2]} 6. g3 {[%clk 0:02:50.5]} 6... Bg7 {[%clk 0:02:51.1]}
7. Bg2 {[%clk 0:02:49.7]} 7... Ne4 {[%clk 0:02:50.4]} 8. Nxe4 {[%clk 0:02:46.3]}
8... Bxe4 {[%clk 0:02:51.3]} 9. O-O {[%clk 0:02:46.5]} 9... O-O {[%clk 0:02:51]}
10. Ne1 {[%clk 0:02:34.4]} 10... Bxg2 {[%clk 0:02:48.1]} 11. Nxg2 {[%clk
0:02:33.4]} 11... d6 {[%clk 0:02:45]} 12. b3 {[%clk 0:02:25.2]} 12... c5 {[%clk
0:02:43]} 13. Bb2 {[%clk 0:02:23.7]} 13... Nc6 {[%clk 0:02:43.1]} 14. e3 {[%clk
0:02:21.8]} 14... cxd4 {[%clk 0:02:40.8]} 15. exd4 {[%clk 0:01:55.5]} 15... d5
{[%clk 0:02:28.3]} 16. Rc1 {[%clk 0:01:45.8]} 16... Rc8 {[%clk 0:02:14.8]} 17.
Ne3 {[%clk 0:01:38.8]} 17... dxc4 {[%clk 0:01:55.6]} 18. Rxc4 {[%clk 0:01:37.2]}
18... b5 {[%clk 0:01:23]} 19. Rc5 {[%clk 0:01:29.8]} 19... Qb6 {[%clk
0:01:23.4]} 20. b4 {[%clk 0:01:18.5]} 20... Rcd8 {[%clk 0:01:14.3]} 21. d5
{[%clk 0:01:09.4]} 21... Bxb2 {[%clk 0:01:00.8]} 22. Rxc6 {[%clk 0:01:08.8]}
22... Qxc6 {[%clk 0:00:48.3]} 23. dxc6 {[%clk 0:01:08.6]} 23... Rxd1 {[%clk
0:00:49.2]} 24. Rxd1 {[%clk 0:01:06.2]} 24... Rc8 {[%clk 0:00:49.5]} 25. Rd7
{[%clk 0:00:34.9]} 25... a6 {[%clk 0:00:36]} 26. c7 {[%clk 0:00:27.1]} 26... Kg7
{[%clk 0:00:36.2]} 27. Rd6 {[%clk 0:00:17.6]} 27... Bxa3 {[%clk 0:00:29.5]} 28.
Rxa6 {[%clk 0:00:17.7]} 28... Bxb4 {[%clk 0:00:29.6]} 29. Rb6 {[%clk 0:00:13.2]}
29... Bc5 {[%clk 0:00:19.6]} 30. Rb7 {[%clk 0:00:07.7]} 30... Bd6 {[%clk
0:00:16.7]} 31. Rxb5 {[%clk 0:00:06.7]} 31... Rxc7 {[%clk 0:00:17.2]} 32. Rb2
{[%clk 0:00:06]} 32... h5 {[%clk 0:00:16.5]} 33. h4 {[%clk 0:00:05.8]} 33... Rc3
{[%clk 0:00:16.2]} 34. Re2 {[%clk 0:00:05.6]} 34... Bc5 {[%clk 0:00:15.8]} 35.
Ng2 {[%clk 0:00:05.6]} 35... Rxg3 {[%clk 0:00:12.9]} 36. Kh2 {[%clk 0:00:04]}
36... Rc3 {[%clk 0:00:12.6]} 37. Nf4 {[%clk 0:00:03.4]} 37... Rf3 {[%clk
0:00:11.9]} 38. Nh3 {[%clk 0:00:03.3]} 38... Be7 {[%clk 0:00:09.8]} 39. Kg2
{[%clk 0:00:03.3]} 39... Rb3 {[%clk 0:00:09.6]} 40. Re4 {[%clk 0:00:03.6]} 40...
Rb5 {[%clk 0:00:09.8]} 41. Rc4 {[%clk 0:00:03.6]} 41... Rf5 {[%clk 0:00:10.1]}
42. Re4 {[%clk 0:00:02.5]} 42... Rd5 {[%clk 0:00:10]} 43. Rc4 {[%clk 0:00:02.7]}
43... Bf6 {[%clk 0:00:09.8]} 44. Re4 {[%clk 0:00:03]} 44... Rd3 {[%clk
0:00:09.9]} 45. Rc4 {[%clk 0:00:03]} 45... Be7 {[%clk 0:00:09.5]} 46. Re4 {[%clk
0:00:03.3]} 46... Rd6 {[%clk 0:00:09.4]} 47. Rc4 {[%clk 0:00:03.2]} 47... e5
{[%clk 0:00:09.9]} 48. Re4 {[%clk 0:00:03.6]} 48... Bf6 {[%clk 0:00:10.1]} 49.
Rc4 {[%clk 0:00:03.8]} 49... Rd5 {[%clk 0:00:10.1]} 50. Re4 {[%clk 0:00:03.9]}
50... Be7 {[%clk 0:00:10.4]} 51. Ng1 {[%clk 0:00:03.6]} 51... f5 {[%clk
0:00:10.3]} 52. Rc4 {[%clk 0:00:03.5]} 52... Kf6 {[%clk 0:00:10.2]} 53. Nf3
{[%clk 0:00:03.5]} 53... Kf7 {[%clk 0:00:09.8]} 54. Rc6 {[%clk 0:00:02.6]} 54...
e4 {[%clk 0:00:09.8]} 55. Ng5+ {[%clk 0:00:02.9]} 55... Bxg5 {[%clk 0:00:09.8]}
56. hxg5 {[%clk 0:00:03.8]} 56... Re5 {[%clk 0:00:09.1]} 57. Kg3 {[%clk
0:00:03.7]} 57... Rd5 {[%clk 0:00:09.3]} 58. Kf4 {[%clk 0:00:03.7]} 58... Rd3
{[%clk 0:00:09.8]} 59. Ke5 {[%clk 0:00:03.7]} 59... Rf3 {[%clk 0:00:09.2]} 60.
Rc7+ {[%clk 0:00:03.5]} 60... Ke8 {[%clk 0:00:08.8]} 61. Ke6 {[%clk 0:00:03.7]}
61... Kd8 {[%clk 0:00:08.5]} 62. Rg7 {[%clk 0:00:02.1]} 62... Rxf2 {[%clk
0:00:08.2]} 63. Kf6 {[%clk 0:00:02.2]} 63... e3 {[%clk 0:00:08.2]} 64. Re7
{[%clk 0:00:01.6]} 64... e2 {[%clk 0:00:08.2]} 65. Kxg6 {[%clk 0:00:01.4]} 65...
Kxe7 {[%clk 0:00:07.3]} 0-1